bitfinex-derivatives/quotes_ETHF0:USTF0_20230401
["timestamp","ask_amount","ask_price","bid_price","bid_amount"]
[1680358866447,0.057225,1819.2,1819.0,1.0]
[1680358866941,3.265025,1819.2,1819.1,6.04199426]
[1680358867539,3.265025,1819.2,1819.0,5.76888203]
[1680358869151,0.57372194,1819.5,1819.1,2.097]
[1680358869351,0.57372194,1819.5,1819.3,1.097]
[1680358869649,0.57372194,1819.5,1819.4,0.19594574]
[1680358870243,4.64316882,1819.6,1819.4,0.19594574]
[1680358870652,3.78152194,1819.6,1819.4,0.19594574]
[1680358872052,2.52536882,1819.7,1819.4,0.19594574]
[1680358872252,3.78152194,1819.8,1819.4,4.50074574]
[1680358872652,3.2078,1819.8,1819.4,4.3048]
[1680358872949,3.2078,1819.8,1819.5,7.078303]
[1680358873549,3.2078,1819.8,1819.6,1.093]
[1680358873754,3.2078,1819.8,1819.6,2.093]
[1680358873948,3.2078,1819.8,1819.7,5.72156117]
[1680358874149,0.57372194,1819.9,1819.7,6.72156117]
[1680358874454,3.78152194,1820.0,1819.8,1.088]
[1680358874645,3.78152194,1820.0,1819.8,2.088]
[1680358874646,3.2078,1820.0,1819.8,2.088]
[1680358874850,3.2078,1820.0,1819.9,6.08361453]
[1680358875850,4.64316882,1820.2,1819.9,6.08361453]
[1680358876260,0.57372194,1820.1,1819.9,6.08361453]
[1680358876460,4.64316882,1820.2,1819.9,6.08361453]
[1680358876659,3.78152194,1820.2,1819.9,6.08361453]
[1680358876959,3.78152194,1820.2,1819.9,7.18061453]
[1680358877160,3.78152194,1820.2,1820.0,1.0]
[1680358877455,3.78152194,1820.2,1820.1,5.83425974]
[1680358878456,3.78152194,1820.2,1820.0,5.99403831]
[1680358879754,3.2078,1820.2,1820.0,5.99403831]
[1680358881455,3.2078,1820.2,1820.1,1.0]
[1680358881864,3.2078,1820.2,1820.1,6.91190288]
[1680358883266,3.2078,1820.2,1820.1,7.99990288]
[1680358891473,3.2078,1820.2,1820.1,6.99990288]
[1680358891680,3.2078,1820.2,1820.1,5.91190288]
[1680358893184,3.2078,1820.2,1820.1,7.00890288]
[1680358893479,3.2078,1820.2,1820.1,1.097]
[1680358893781,3.2078,1820.2,1820.1,7.90783465]
[1680358893982,3.2078,1820.2,1820.1,6.90783465]
[1680358898181,3.2078,1820.2,1820.1,5.81083465]
[1680358898584,3.2078,1820.2,1820.0,1.59936663]
[1680358898888,3.2078,1820.2,1820.0,0.59936663]
[1680358899591,3.187,1820.1,1819.4,7.73164559]
[1680358899786,1.089,1819.8,1819.5,1.0]
[1680358900278,1.089,1819.8,1819.6,5.76813296]
[1680358900888,1.089,1819.8,1819.7,1.0]
[1680358901084,1.089,1819.8,1819.6,5.76813296]
[1680358901284,3.2078,1819.9,1819.7,7.22055284]
[1680358901495,3.2078,1819.9,1819.7,1.093]
[1680358901686,3.2078,1819.9,1819.7,2.093]
[1680358901990,3.2078,1819.9,1819.8,5.83692458]
[1680358904592,3.2078,1820.1,1819.8,5.83692458]
[1680358904790,3.2078,1820.1,1819.9,1.0]
[1680358905090,3.2078,1820.1,1820.0,5.8011366]
[1680358906680,4.87052194,1820.3,1820.0,5.8011366]
[1680358907089,0.57372194,1820.2,1820.0,5.8011366]
[1680358908788,3.2078,1820.1,1820.0,5.8011366]
[1680358909491,3.2078,1820.1,1819.9,6.18908785]
[1680358912288,3.2078,1820.1,1820.0,1.0]
[1680358912790,3.78152194,1820.1,1820.0,5.77524121]
[1680358913099,0.57372194,1820.2,1820.0,5.77524121]
[1680358914290,0.57372194,1820.2,1820.1,2.093]
[1680358914495,0.86164688,1820.2,1820.1,2.093]
[1680358914688,0.86164688,1820.2,1820.1,7.06221231]
[1680358914885,0.57162475,1820.2,1820.1,7.06221231]
[1680358916498,5.2185032,1820.3,1820.1,7.06221231]
[1680358916695,0.86164688,1820.2,1820.1,7.06221231]
[1680358917092,0.86164688,1820.2,1820.1,5.96921231]
[1680358917594,0.86164688,1820.2,1820.0,6.89577695]
[1680358917799,0.57204485,1820.1,1820.0,6.89577695]
[1680358919194,1.43369173,1820.1,1820.0,6.89577695]
[1680358919401,4.64149173,1820.1,1820.0,6.89577695]
[1680358919704,4.64167105,1820.1,1820.0,6.89577695]
[1680358919902,4.06944688,1820.1,1820.0,6.89577695]
[1680358920097,4.64166925,1820.1,1820.0,6.89577695]
[1680358920710,4.06944688,1820.1,1820.0,6.89577695]
[1680358920997,4.06944688,1820.1,1820.0,5.80277695]
[1680358921402,4.06944688,1820.1,1819.9,5.80627974]
[1680358921596,0.57223472,1820.0,1819.9,5.80627974]
[1680358922694,1.86164688,1820.0,1819.9,5.80627974]
[1680358923306,2.43387018,1820.0,1819.9,5.80627974]
[1680358923509,0.86164688,1820.0,1819.9,5.80627974]
[1680358923808,1.86164688,1820.0,1819.9,5.80627974]
[1680358926711,1.0,1820.0,1819.9,5.80627974]
[1680358927310,1.85813965,1820.0,1819.9,5.80627974]
[1680358927515,0.85813965,1820.0,1819.9,5.80627974]
[1680358927816,0.85813918,1820.0,1819.9,5.80627974]
[1680358928117,1.85813918,1820.0,1819.9,5.80627974]
[1680358928316,0.85813918,1820.0,1819.9,5.80627974]
[1680358929514,0.85813918,1820.0,1819.7,6.21334757]
[1680358929816,3.2078,1819.8,1819.7,6.21334757]
[1680358930216,3.7798325,1819.8,1819.7,6.21334757]
[1680358933021,3.7798325,1819.8,1819.6,5.77533687]
[1680358933320,3.7798325,1819.8,1819.5,7.29124806]
[1680358934021,3.7798325,1819.8,1819.5,6.29124806]
[1680358935017,3.7798325,1819.8,1819.5,7.29124806]
[1680358936221,3.7798325,1819.8,1819.5,6.29124806]
[1680358936815,3.2078,1819.6,1819.5,6.29124806]
[1680358937013,4.3048,1819.6,1819.3,0.5421399]
[1680358937212,4.3048,1819.6,1819.2,1.097]
[1680358937410,0.03694618,1819.5,1819.2,1.097]
[1680358937810,0.03694618,1819.5,1819.3,6.2002486]
[1680358939126,5.3868,1819.4,1818.7,0.5488677]
[1680358939314,3.2078,1818.9,1818.2,7.35145486]
[1680358939627,3.2078,1818.9,1818.6,1.097]
[1680358939823,3.2078,1818.7,1818.6,1.097]
[1680358940119,3.2078,1818.7,1818.6,1.43756041]
[1680358940321,0.0597688,1818.8,1818.6,1.43756041]
[1680358941526,0.0597688,1818.8,1818.6,2.43756041]
[1680358942815,0.0597688,1818.8,1818.6,1.43756041]
[1680358943016,0.0597688,1818.8,1818.6,2.43756041]
[1680358943822,0.0597688,1818.8,1818.6,1.43756041]
[1680358947046,0.0597688,1818.8,1818.7,1.097]
[1680358947424,0.0597688,1818.8,1818.7,7.13544256]
[1680358950624,3.2675688,1818.8,1818.7,7.13544256]
[1680358951626,0.0597688,1818.8,1818.7,7.13544256]
[1680358951831,4.2968,1819.1,1818.7,8.13544256]
[1680358952131,4.2968,1819.1,1818.7,7.13544256]
[1680358952838,4.2968,1819.1,1818.8,1.0]
[1680358953026,3.2078,1819.1,1818.9,1.097]
[1680358953226,3.2078,1819.3,1818.9,6.94137974]
[1680358955025,4.3048,1819.5,1819.1,1.097]
[1680358955227,3.2078,1819.5,1819.4,1.088]
[1680358955629,3.2078,1819.5,1819.4,1.14953979]
[1680358959238,3.2078,1819.7,1819.4,1.14953979]
[1680358960237,3.2078,1819.7,1819.5,1.0]
[1680358960634,3.2078,1819.7,1819.6,5.78474437]
[1680358960937,4.2968,1819.9,1819.6,5.78474437]
[1680358961636,4.2968,1819.9,1819.7,1.0]
[1680358961840,3.2078,1819.9,1819.7,1.0]
[1680358962139,3.2078,1819.9,1819.8,5.96384363]
[1680358962736,3.2078,1819.9,1819.8,7.06084363]
[1680358963740,3.2078,1820.1,1819.9,1.0]
[1680358964139,3.2078,1820.1,1820.0,6.31834806]
[1680358967343,3.2078,1820.3,1820.0,12.88234806]
[1680358967533,3.2078,1820.3,1820.1,1.0]
[1680358967940,3.2078,1820.3,1820.2,6.05823599]
[1680358968844,3.7798325,1820.7,1820.2,12.63123599]
[1680358969143,3.2078,1820.7,1820.5,1.093]
[1680358969546,3.2078,1820.7,1820.6,6.26822008]
[1680358970443,0.5720325,1820.8,1820.6,7.35622008]
[1680358970638,3.2078,1820.9,1820.6,7.35622008]
[1680358970947,3.2078,1820.9,1820.7,1.0]
[1680358971139,3.2078,1820.9,1820.7,7.32980907]
[1680358972348,3.2078,1820.9,1820.7,6.32980907]
[1680358972548,1.0,1820.8,1820.7,6.32980907]
[1680358972842,3.2078,1820.9,1820.6,6.23150566]
[1680358974640,3.2078,1820.7,1820.6,6.23150566]
[1680358978448,3.2078,1820.9,1820.6,6.23150566]
[1680358978752,3.2078,1821.1,1820.8,6.573]
[1680358978949,3.2078,1821.1,1821.0,1.097]
[1680358979347,3.2078,1821.1,1821.0,1.30063919]
[1680358980451,3.2078,1821.3,1821.1,1.097]
[1680358980746,3.2078,1821.3,1821.2,1.13080451]
[1680358980949,3.2078,1821.3,1821.2,7.04784718]
[1680358982248,3.2078,1821.3,1821.2,8.04784718]
[1680358982448,3.2078,1821.6,1821.3,1.0]
[1680358982649,1.089,1821.7,1821.3,4.2078]
[1680358982944,3.2078,1821.8,1821.5,1.097]
[1680358983150,3.7798325,1822.0,1821.6,0.94572492]
[1680358983350,3.7798325,1822.0,1821.7,1.0]
[1680358983655,3.7798325,1822.0,1821.8,5.69718667]
[1680358983843,3.2078,1822.0,1821.8,5.69718667]
[1680358984152,3.7798325,1822.0,1821.8,5.69718667]
[1680358985251,3.7798325,1822.0,1821.7,6.32555489]
[1680358985754,3.2078,1822.0,1821.7,6.32555489]
[1680358988347,3.7798325,1822.2,1821.9,1.097]
[1680358988554,3.2078,1822.2,1821.9,1.097]
[1680358988861,3.2078,1822.2,1822.0,5.7758322]
[1680358990358,3.2078,1822.2,1822.0,6.8728322]
[1680358992064,4.33235849,1822.4,1822.0,6.8728322]
[1680358992259,4.33235849,1822.4,1822.1,1.0]
[1680358992456,4.33235849,1822.4,1822.0,6.8728322]
[1680358992654,4.33235849,1822.4,1822.2,5.80668819]
[1680358992854,4.33235849,1822.4,1822.1,5.88475776]
[1680358993158,4.33235849,1822.4,1822.3,5.96562506]
[1680358993359,4.33235849,1822.4,1822.1,5.97532853]
[1680358993547,4.33235849,1822.4,1822.3,4.93922362]
[1680358993951,5.33235849,1822.4,1822.2,5.95128538]
[1680358994160,5.33235849,1822.4,1822.1,0.41740724]
[1680358994462,1.0,1822.3,1822.1,0.41740724]
[1680358994662,1.0,1822.3,1822.1,1.51440724]
[1680358994960,3.2078,1822.2,1822.1,0.41740724]
[1680358995157,1.0,1822.1,1821.4,3.2078]
[1680358995356,4.3048,1822.0,1821.4,3.2078]
[1680358995562,4.3048,1822.0,1821.5,1.097]
[1680358995763,3.2078,1822.0,1821.7,1.097]
[1680358996060,3.2078,1822.0,1821.8,5.79174866]
[1680358996459,3.2078,1822.3,1821.9,1.093]
[1680358996765,3.2078,1822.5,1822.2,1.097]
[1680358996961,3.2078,1822.5,1822.3,1.097]
[1680358997163,3.2078,1822.5,1822.3,7.09529338]
[1680358997365,3.2078,1822.5,1822.3,1.097]
[1680358997661,3.2078,1822.5,1822.4,6.27573024]
[1680359000064,3.2078,1822.5,1822.2,5.99178497]
[1680359000361,3.7798325,1822.5,1822.2,5.99178497]
[1680359000569,4.7798325,1822.5,1822.2,5.99178497]
[1680359000864,1.0,1822.4,1822.2,5.99178497]
[1680359001260,1.0,1822.4,1822.3,0.03977549]
[1680359001466,5.3048,1822.4,1822.3,0.03977549]
[1680359001662,1.0,1822.3,1821.9,1.097]
[1680359001860,4.2968,1822.2,1821.7,9.1671]
[1680359002068,1.0,1822.1,1821.7,4.3008]
[1680359002272,1.0,1822.1,1821.8,5.94902233]
[1680359002474,4.2968,1822.2,1821.8,5.94902233]
[1680359003070,4.2968,1822.2,1821.8,6.94902233]
[1680359003270,4.2968,1822.2,1821.8,5.94902233]
[1680359003471,3.2078,1822.2,1821.9,1.097]
[1680359003672,3.2078,1822.2,1821.9,2.097]
[1680359003877,3.2078,1822.2,1822.0,6.3313551]
[1680359005668,4.2968,1822.2,1822.0,6.3313551]
[1680359005875,1.097,1822.1,1822.0,6.3313551]
[1680359006067,2.097,1822.1,1822.0,6.3313551]
[1680359006870,2.097,1822.1,1821.5,2.088]
[1680359007071,3.2078,1821.9,1821.6,1.097]
[1680359007476,3.2078,1821.9,1821.7,6.35811951]
[1680359008481,1.0,1822.0,1821.7,6.35811951]
[1680359008681,2.6690325,1822.1,1821.7,6.35811951]
[1680359009073,3.2078,1822.0,1821.7,6.35811951]
[1680359009473,3.7798325,1822.0,1821.7,6.35811951]
[1680359011584,4.63797168,1822.0,1821.7,6.35811951]
[1680359011787,3.7798325,1822.0,1821.7,6.35811951]
[1680359012388,4.63797168,1822.0,1821.7,6.35811951]
[1680359012575,3.7798325,1822.0,1821.7,6.35811951]
[1680359012884,1.5720325,1821.9,1821.7,6.35811951]
[1680359013083,0.5720325,1821.9,1821.7,6.20686868]
[1680359013286,0.5720325,1821.8,1821.7,6.20686868]
[1680359016591,0.5720325,1821.8,1821.7,7.20686868]
[1680359016793,0.5720325,1821.8,1821.7,6.20686868]
[1680359017286,0.85813918,1821.8,1821.7,6.20686868]
[1680359017488,1.42787452,1821.8,1821.7,6.20686868]
[1680359017890,0.56973534,1821.8,1821.7,6.20686868]
[1680359019392,0.85813918,1821.8,1821.7,6.20686868]
[1680359019795,1.85813918,1821.8,1821.7,6.20686868]
[1680359020296,0.85813918,1821.8,1821.7,6.20686868]
[1680359021295,3.23605632,1821.9,1821.7,6.20686868]
[1680359022495,6.45385632,1821.8,1821.2,1.6348753]
[1680359022704,1.4268236,1821.6,1821.2,1.6348753]
[1680359022892,1.57072944,1821.5,1821.2,1.6348753]
[1680359023195,0.57072944,1821.5,1821.3,6.1735232]
[1680359023389,0.57072944,1821.4,1821.3,6.1735232]
[1680359023589,1.4268236,1821.5,1821.3,6.1735232]
[1680359023790,0.57072944,1821.4,1821.3,6.1735232]
[1680359023989,1.4268236,1821.5,1821.3,6.1735232]
[1680359024196,0.57072944,1821.4,1821.3,6.1735232]
[1680359029700,1.4268236,1821.4,1821.3,6.1735232]
[1680359031405,0.57072944,1821.4,1821.3,6.1735232]
[1680359032502,1.4268236,1821.4,1821.3,6.1735232]
[1680359032799,0.57072944,1821.4,1821.3,6.1735232]
[1680359033007,1.4268236,1821.4,1821.3,6.1735232]
[1680359033205,0.57072944,1821.4,1821.3,6.1735232]
[1680359033806,0.57072944,1821.4,1821.3,7.1735232]
[1680359034105,0.57072944,1821.4,1821.3,6.1735232]
[1680359034907,0.57072944,1821.4,1821.3,7.1735232]
[1680359035099,0.57072944,1821.4,1821.3,6.1735232]
[1680359038506,1.57072944,1821.4,1821.2,6.33537287]
[1680359039705,0.57072944,1821.4,1821.2,6.33537287]
[1680359039908,1.57072944,1821.4,1821.2,6.33537287]
[1680359040405,0.57072944,1821.4,1821.2,6.33537287]
[1680359045504,0.57072944,1821.3,1821.2,6.33537287]
[1680359050103,1.57072944,1821.3,1821.2,6.33537287]
[1680359050303,2.65972944,1821.3,1821.2,6.33537287]
[1680359051007,5.3048,1821.3,1821.2,4.99446002]
[1680359051208,6.45385632,1821.3,1820.7,3.2078]
[1680359051404,1.66110574,1821.1,1820.7,3.2078]
[1680359051597,1.0,1821.0,1820.7,3.2078]
[1680359051802,1.097,1820.9,1820.8,6.34659265]
[1680359052005,1.66910574,1820.9,1820.8,6.34659265]
[1680359052211,1.097,1820.9,1820.8,6.34659265]
[1680359052401,1.097,1820.9,1820.6,0.18884192]
[1680359053505,1.66910574,1820.9,1820.6,0.18884192]
[1680359054604,1.097,1820.7,1820.6,0.18884192]
[1680359054911,1.097,1820.7,1820.5,6.07294451]
[1680359055109,1.097,1820.7,1820.4,6.15300491]
[1680359055316,1.097,1820.5,1820.3,0.55736243]
[1680359055609,2.097,1820.4,1820.1,3.2078]
[1680359055818,2.097,1820.4,1820.1,3.76603836]
[1680359056310,2.097,1820.4,1820.2,6.26211166]
[1680359056513,1.097,1820.4,1820.2,6.26211166]
[1680359063220,4.3048,1820.6,1820.2,6.26211166]
[1680359064123,1.087,1820.4,1820.2,6.26211166]
[1680359064922,1.0,1820.3,1820.2,6.26211166]
[1680359067024,2.097,1820.3,1820.2,6.26211166]
[1680359067633,1.097,1820.3,1820.2,6.26211166]
[1680359067826,2.097,1820.3,1820.2,6.26211166]
[1680359068724,1.097,1820.3,1820.2,6.26211166]
[1680359069528,2.097,1820.3,1820.2,6.26211166]
[1680359069828,1.097,1820.3,1820.2,6.26211166]
[1680359070418,2.097,1820.3,1820.2,6.26211166]
[1680359070623,1.097,1820.3,1820.2,6.26211166]
[1680359076539,3.2078,1820.6,1820.2,7.35911166]
[1680359076834,3.2078,1820.6,1820.2,1.097]
[1680359077031,3.2078,1820.6,1820.3,5.84692254]
[1680359077339,3.2078,1820.6,1820.4,1.0]
[1680359077632,3.2078,1820.6,1820.2,2.097]
[1680359077938,3.2078,1820.6,1820.4,7.34768055]
[1680359078235,3.2078,1820.6,1820.3,1.0]
[1680359078432,1.097,1820.7,1820.3,1.0]
[1680359078638,1.097,1820.7,1820.5,6.15075293]
[1680359078939,1.097,1820.7,1820.2,2.097]
[1680359079140,2.097,1820.7,1820.2,2.097]
[1680359079342,2.097,1820.7,1820.6,6.306143]
[1680359079640,1.0,1820.6,1820.3,0.16794939]
[1680359079830,1.0,1820.6,1820.2,2.097]
[1680359080031,1.0,1820.6,1820.2,1.097]
[1680359080332,1.0,1820.6,1820.3,6.02200582]
[1680359080532,3.2078,1820.5,1820.3,6.02200582]
[1680359081631,4.3048,1820.5,1820.3,6.02200582]
[1680359082037,4.3048,1820.5,1820.2,0.17329576]
[1680359086640,4.87690574,1820.7,1820.2,1.27029576]
[1680359088033,4.87690574,1820.7,1820.3,1.0]
[1680359088344,4.87690574,1820.7,1820.4,5.90034025]
[1680359090235,4.87690574,1820.7,1820.3,5.76711262]
[1680359091435,3.77990574,1820.7,1820.4,1.088]
[1680359091641,0.57210574,1820.7,1820.5,1.0]
[1680359091945,0.57210574,1820.7,1820.5,6.73095599]
[1680359092141,0.57210574,1820.7,1820.5,5.73095599]
[1680359092445,1.66910574,1820.8,1820.5,5.73095599]
[1680359093449,2.52726435,1820.8,1820.5,5.73095599]
[1680359093747,0.57210574,1820.7,1820.5,5.73095599]
[1680359093939,3.77990574,1820.7,1820.5,5.73095599]
[1680359094939,0.57210574,1820.8,1820.5,6.82395599]
[1680359095151,0.57210574,1820.8,1820.6,1.0]
[1680359095448,1.43026435,1820.9,1820.7,6.12452991]
[1680359095644,1.43026435,1820.9,1820.7,7.21252991]
[1680359095645,0.57210574,1820.9,1820.7,7.21252991]
[1680359095845,0.57210574,1820.8,1820.7,7.21252991]
[1680359102248,0.57210574,1820.8,1820.7,10.42532991]
[1680359102553,0.57210574,1821.0,1820.7,15.90132991]
[1680359102853,0.57210574,1821.0,1820.9,4.3048]
[1680359103145,0.57210574,1821.0,1820.9,5.3048]
[1680359103354,0.57210574,1821.1,1820.9,11.54649257]
[1680359103553,0.57210574,1821.1,1821.0,2.088]
[1680359103954,0.57210574,1821.1,1821.0,8.10799516]
[1680359105345,0.57210574,1821.1,1821.0,7.10799516]
[1680359105549,0.57210574,1821.1,1821.0,6.01999516]
[1680359105746,3.77990574,1821.1,1821.0,6.01999516]
[1680359105941,3.77990574,1821.1,1820.9,6.16543643]
[1680359107947,0.57210574,1821.2,1821.0,7.59]
[1680359108155,0.57210574,1821.2,1821.1,1.088]
[1680359108356,4.63806435,1821.4,1821.1,6.8021889]
[1680359108545,4.63806435,1821.4,1821.2,1.093]
[1680359108742,3.77990574,1821.4,1821.3,1.0]
[1680359109050,3.77990574,1821.4,1821.3,5.9392434]
[1680359112045,3.2078,1821.4,1821.3,5.9392434]
[1680359114458,0.57210574,1821.5,1821.3,7.0272434]
[1680359114651,4.63806435,1821.6,1821.3,7.0272434]
[1680359114856,3.77990574,1821.6,1821.3,7.0272434]
[1680359115352,3.77990574,1821.6,1821.3,5.9392434]
[1680359117150,3.77990574,1821.6,1821.3,7.0362434]
[1680359118957,3.77990574,1821.6,1821.4,1.0]
[1680359119155,3.2078,1821.6,1821.4,1.0]
[1680359119356,3.2078,1821.6,1821.5,6.20160374]
[1680359119858,3.2078,1821.6,1821.4,6.15207933]
[1680359120156,4.86890574,1821.6,1821.4,6.15207933]
[1680359120558,1.0,1821.5,1821.3,6.06093988]
[1680359120748,3.2078,1821.4,1821.2,0.19971373]
[1680359120954,3.2078,1821.4,1821.1,1.097]
[1680359121154,3.2078,1821.4,1821.2,6.12336876]
[1680359122059,1.65910574,1821.7,1821.3,1.0]
[1680359122557,1.65910574,1821.7,1821.4,5.89491279]
[1680359122759,3.2078,1821.6,1821.4,5.89491279]
[1680359123159,0.57210574,1821.7,1821.5,1.097]
[1680359123462,0.57210574,1821.8,1821.6,7.24054813]
[1680359123758,4.63806435,1821.8,1821.6,6.24054813]
[1680359124958,3.77990574,1821.8,1821.6,6.24054813]
[1680359125351,0.57210574,1821.8,1821.6,6.24054813]
[1680359126863,3.77990574,1821.8,1821.6,6.24054813]
[1680359127660,3.77990574,1821.8,1821.6,6.23352401]
[1680359128563,2.2216226,1821.9,1821.6,6.23352401]
[1680359128763,1.98278121,1821.9,1821.7,2.097]
[1680359128955,1.1246226,1821.9,1821.7,2.097]
[1680359129261,1.1246226,1821.9,1821.8,6.08551579]
[1680359130659,1.98278121,1821.9,1821.8,6.08551579]
[1680359131056,1.1246226,1821.9,1821.8,6.08551579]
[1680359131763,1.98278121,1821.9,1821.8,6.08551579]
[1680359132951,1.41067547,1821.9,1821.8,6.08551579]
[1680359133355,1.12291448,1821.9,1821.8,6.08551579]
[1680359133766,0.57039762,1821.9,1821.8,6.08551579]
[1680359138863,0.85815861,1821.9,1821.8,6.08551579]
[1680359139167,1.42903769,1821.9,1821.8,6.08551579]
[1680359140558,0.57087908,1821.9,1821.8,6.08551579]
[1680359140859,0.85815861,1821.9,1821.8,6.08551579]
[1680359143360,1.94515861,1821.9,1821.8,6.08551579]
[1680359143667,4.33305632,1821.9,1821.2,4.3048]
[1680359143867,4.3048,1821.5,1821.1,1.54510973]
[1680359144164,1.097,1821.2,1820.7,2.71755497]
[1680359144665,1.097,1821.2,1821.1,6.15413561]
[1680359144863,1.097,1821.2,1820.8,0.10903959]
[1680359145062,2.097,1821.2,1821.1,6.31012237]
[1680359145259,1.097,1821.2,1820.7,3.71755497]
[1680359145459,2.097,1821.2,1820.8,6.05335471]
[1680359145768,1.097,1821.2,1820.8,7.05335471]
[1680359145960,1.097,1821.2,1820.8,6.05335471]
[1680359146162,2.097,1821.2,1820.8,6.05335471]
[1680359148167,2.66832561,1821.2,1820.8,6.05335471]
[1680359148863,2.097,1821.2,1820.8,6.05335471]
[1680359149261,3.2078,1821.1,1820.8,6.05335471]
[1680359149460,1.097,1820.9,1820.8,6.05335471]
[1680359149661,4.3048,1820.9,1820.8,6.05335471]
[1680359149864,4.3048,1820.9,1820.6,3.2078]
[1680359149865,4.3048,1820.9,1820.7,5.96913654]
[1680359151673,1.097,1820.8,1820.7,5.96913654]
[1680359152670,1.097,1820.8,1820.5,0.44569269]
[1680359153060,2.097,1820.8,1820.5,0.44569269]
[1680359153271,1.097,1820.8,1820.5,0.44569269]
[1680359153667,2.097,1820.8,1820.5,0.44569269]
[1680359154967,1.097,1820.8,1820.5,0.44569269]
[1680359155171,2.097,1820.8,1820.5,0.44569269]
[1680359155872,1.097,1820.8,1820.5,0.44569269]
[1680359157274,1.0,1820.7,1820.5,0.44569269]
[1680359157470,4.2078,1820.7,1820.5,0.44569269]
[1680359157772,4.2078,1820.7,1820.4,5.98188712]
[1680359163866,1.097,1820.5,1820.4,5.98188712]
[1680359164276,1.097,1820.5,1820.3,5.93941806]
[1680359167071,1.087,1820.6,1820.3,5.93941806]
[1680359175885,1.087,1820.6,1820.3,6.93941806]
[1680359176986,1.087,1820.6,1820.3,5.93941806]
[1680359177284,1.087,1820.6,1820.3,6.93941806]
[1680359178080,1.087,1820.6,1820.3,5.93941806]
[1680359186985,1.089,1820.6,1820.3,5.93941806]
[1680359190091,2.52531402,1820.8,1820.4,3.2078]
[1680359190385,1.66832561,1820.8,1820.5,0.58919908]
[1680359190592,1.66832561,1820.8,1820.5,1.58919908]
[1680359192087,0.57132561,1820.8,1820.5,2.68619908]
[1680359194496,0.57132561,1820.8,1820.5,1.68619908]
[1680359194690,0.57132561,1820.8,1820.5,2.68619908]
[1680359194993,0.57132561,1820.8,1820.6,1.0]
[1680359195198,0.57132561,1820.8,1820.7,3.2078]
[1680359195390,0.57132561,1820.8,1820.7,9.36735236]
[1680359196097,1.42831402,1820.9,1820.7,10.46435236]
[1680359196296,0.57132561,1820.8,1820.7,10.46435236]
[1680359196498,1.42831402,1820.9,1820.7,7.25655236]
[1680359196692,0.57132561,1820.9,1820.7,7.25655236]
[1680359197100,1.42831402,1820.9,1820.7,6.15955236]
[1680359197597,0.57132561,1820.9,1820.7,6.15955236]
[1680359199005,1.42831402,1820.9,1820.7,6.15955236]
[1680359199400,0.57132561,1820.9,1820.7,6.15955236]
[1680359202006,0.57132561,1820.9,1820.7,9.36735236]
[1680359203099,0.57132561,1820.9,1820.8,1.0]
[1680359203306,0.57132561,1820.9,1820.7,9.36735236]
[1680359203504,0.57132561,1820.9,1820.8,6.08421773]
[1680359205206,0.57132561,1820.9,1820.7,6.24565819]
[1680359206409,0.56491423,1820.9,1820.7,6.24565819]
[1680359207003,1.66191423,1820.9,1820.7,6.24565819]
[1680359207405,1.66191423,1820.9,1820.6,6.00514968]
[1680359207605,1.66191423,1820.9,1820.6,7.00514968]
[1680359209215,1.66191423,1820.9,1820.6,6.00514968]
[1680359215216,1.66191423,1820.9,1820.6,7.00514968]
[1680359215417,1.097,1820.9,1820.6,7.00514968]
[1680359215618,1.097,1820.9,1820.7,3.2078]
[1680359215819,0.85698841,1821.1,1820.7,5.3048]
[1680359216020,0.85698841,1821.1,1820.8,6.2322856]
[1680359222424,0.85698841,1821.1,1820.8,7.0552856]
[1680359223124,4.06478841,1821.1,1820.8,7.0552856]
[1680359223324,0.85698841,1821.0,1820.8,7.0552856]
[1680359223528,5.06478841,1821.1,1820.8,7.0552856]
[1680359224425,1.0,1821.0,1820.8,7.0552856]
[1680359224621,1.85698841,1821.0,1820.8,7.0552856]
[1680359225021,2.67798841,1821.0,1820.8,6.2322856]
[1680359225526,2.67798841,1821.0,1820.7,5.55510509]
[1680359226027,1.67798841,1821.0,1820.7,5.55510509]
[1680359226329,2.67798841,1821.0,1820.7,5.55510509]
[1680359227027,0.823,1820.9,1820.7,5.55510509]
[1680359227726,1.64,1820.8,1820.3,3.2078]
[1680359228027,1.64,1820.8,1820.3,4.0308]
[1680359228028,0.821,1820.7,1820.3,4.0308]
[1680359228629,0.821,1820.7,1820.4,6.19626123]
[1680359230929,0.821,1820.7,1820.4,7.19626123]
[1680359232433,4.0288,1820.7,1820.4,6.19626123]
[1680359235332,4.88578841,1820.7,1820.4,6.19626123]
[1680359236731,4.0288,1820.7,1820.4,6.19626123]
[1680359236928,4.88578841,1820.7,1820.4,6.19626123]
[1680359237136,0.823,1820.6,1820.4,6.19626123]
[1680359238128,0.823,1820.6,1820.3,6.15607775]
[1680359238534,0.823,1820.6,1820.4,1.0]
[1680359238838,0.823,1820.6,1820.5,5.8316314]
[1680359239330,1.67898841,1820.8,1820.5,5.8316314]
[1680359239936,0.85698841,1820.9,1820.7,0.823]
[1680359240133,1.41702696,1821.0,1820.7,0.823]
[1680359240330,1.41702696,1821.0,1820.8,5.78973264]
[1680359240532,0.85698841,1821.0,1820.9,1.0]
[1680359240836,0.85698841,1821.0,1820.9,5.87264329]
[1680359241235,0.85698841,1821.0,1820.8,5.78304244]
[1680359241428,0.85698841,1821.0,1820.8,6.78304244]
[1680359242232,0.85698841,1821.0,1820.9,1.0]
[1680359242628,0.85698841,1821.0,1820.9,6.84858697]
[1680359243232,0.85698841,1821.1,1820.9,6.84858697]
[1680359245140,0.85698841,1821.1,1820.9,5.84858697]
[1680359249142,0.85698841,1821.1,1820.8,6.3162012]
[1680359249340,0.85698841,1821.1,1820.8,7.3162012]
[1680359249844,0.85698841,1821.1,1820.8,6.3162012]
[1680359250644,0.85698841,1821.1,1820.8,7.3162012]
[1680359251145,0.85698841,1821.1,1820.8,6.3162012]
[1680359256947,1.95098841,1821.1,1820.8,6.3162012]
[1680359259349,1.094,1821.1,1820.8,6.3162012]
[1680359259640,1.95098841,1821.1,1820.8,6.3162012]
[1680359260353,1.094,1821.1,1820.8,6.3162012]
[1680359260754,1.95098841,1821.1,1820.8,6.3162012]
[1680359263450,1.95098841,1821.1,1820.8,9.5240012]
[1680359265355,1.094,1821.1,1820.8,9.5240012]